[Event "Titled Tuesday Blitz May 16 Early 2023"]
[White "Lohani, Sujana"]
[Black "Khromkin, Andrey"]
[WhiteFideId "12311987"]
[BlackFideId "4154126"]
[WhiteElo "1718"]
[BlackElo "2446"]
[Result "0-1"]
[Round "02"]
[TimeControl "180+2"]
[Date "2023.05.16"]
[WhiteClock "0:00:00"]
[BlackClock "0:00:45"]

1. d4 {[%clk 0:03:00]}  d5 {[%clk 0:02:55]} 2. Nf3 {[%clk 0:02:47]}  a6 {[%clk 0:02:54]} 3. c4 {[%clk 0:02:47]}  dxc4 {[%clk 0:02:53]} 4. a4 {[%clk 0:02:45]}  Nc6 {[%clk 0:02:50]} 5. e3 {[%clk 0:02:44]}  Bg4 {[%clk 0:02:50]} 6. Bxc4 {[%clk 0:02:43]}  e6 {[%clk 0:02:50]} 7. O-O {[%clk 0:02:40]}  Nf6 {[%clk 0:02:50]} 8. h3 {[%clk 0:02:36]}  Bh5 {[%clk 0:02:26]} 9. Be2 {[%clk 0:02:26]}  Bd6 {[%clk 0:02:25]} 10. Nc3 {[%clk 0:02:26]}  Qe7 {[%clk 0:02:25]} 11. e4 {[%clk 0:02:25]}  Bxf3 {[%clk 0:02:23]} 12. Bxf3 {[%clk 0:02:20]}  Rd8 {[%clk 0:02:23]} 13. d5 {[%clk 0:02:11]}  Ne5 {[%clk 0:02:17]} 14. Qe2 {[%clk 0:02:05]}  exd5 {[%clk 0:02:14]} 15. exd5 {[%clk 0:02:01]}  O-O {[%clk 0:02:12]} 16. Bg5 {[%clk 0:01:55]}  Nxf3+ {[%clk 0:02:12]} 17. Qxf3 {[%clk 0:01:53]}  Qe5 {[%clk 0:02:12]} 18. Qg3 {[%clk 0:01:38]}  Qf5 {[%clk 0:02:07]} 19. Qe3 {[%clk 0:01:26]}  Rfe8 {[%clk 0:02:05]} 20. Qd2 {[%clk 0:01:26]}  Bb4 {[%clk 0:01:51]} 21. Bxf6 {[%clk 0:01:16]}  Qxf6 {[%clk 0:01:50]} 22. Rad1 {[%clk 0:01:14]}  Bxc3 {[%clk 0:01:48]} 23. bxc3 {[%clk 0:01:12]}  Re4 {[%clk 0:01:47]} 24. Rfe1 {[%clk 0:01:06]}  Rxa4 {[%clk 0:01:43]} 25. Qe3 {[%clk 0:00:45]}  h6 {[%clk 0:01:38]} 26. Qe7 {[%clk 0:00:32]}  Qxe7 {[%clk 0:01:37]} 27. Rxe7 {[%clk 0:00:33]}  Rc4 {[%clk 0:01:38]} 28. Rd3 {[%clk 0:00:31]}  Rc5 {[%clk 0:01:37]} 29. d6 {[%clk 0:00:20]}  Rxd6 {[%clk 0:01:24]} 30. Rxd6 {[%clk 0:00:17]}  cxd6 {[%clk 0:01:24]} 31. Rxb7 {[%clk 0:00:18]}  Rxc3 {[%clk 0:01:24]} 32. Ra7 {[%clk 0:00:17]}  Ra3 {[%clk 0:01:20]} 33. Rd7 {[%clk 0:00:16]}  a5 {[%clk 0:01:15]} 34. Rxd6 {[%clk 0:00:16]}  a4 {[%clk 0:01:15]} 35. Ra6 {[%clk 0:00:16]}  Ra1+ {[%clk 0:01:15]} 36. Kh2 {[%clk 0:00:16]}  a3 {[%clk 0:01:15]} 37. Kg3 {[%clk 0:00:16]}  Kf8 {[%clk 0:01:09]} 38. Kf3 {[%clk 0:00:16]}  Ke7 {[%clk 0:01:08]} 39. Ke2 {[%clk 0:00:16]}  h5 {[%clk 0:01:02]} 40. Kd2 {[%clk 0:00:15]}  h4 {[%clk 0:00:57]} 41. Ra4 {[%clk 0:00:13]}  g5 {[%clk 0:00:53]} 42. Ke2 {[%clk 0:00:11]}  f5 {[%clk 0:00:48]} 43. Kf3 {[%clk 0:00:09]}  a2 {[%clk 0:00:48]} 44. Ke2 {[%clk 0:00:08]}  g4 {[%clk 0:00:46]} 45. hxg4 {[%clk 0:00:05]}  fxg4 {[%clk 0:00:46]} 46. f3 {[%clk 0:00:00]}  gxf3+ {[%clk 0:00:45]} 0-1


[Site "https://www.chess.com"]

[Event "Titled Tuesday Blitz May 16 Early 2023"]
[White "stratacticos"]
[Black "Bagrationi, Alexander"]
[BlackFideId "14104954"]
[WhiteElo "1869"]
[BlackElo "2398"]
[Result "0-1"]
[Round "02"]
[TimeControl "180+2"]
[Date "2023.05.16"]
[WhiteClock "0:00:00"]
[BlackClock "0:01:34"]

1. e4 {[%clk 0:03:00]}  c5 {[%clk 0:02:39]} 2. b4 {[%clk 0:02:57]}  cxb4 {[%clk 0:02:36]} 3. a3 {[%clk 0:02:57]}  bxa3 {[%clk 0:02:37]} 4. Nxa3 {[%clk 0:02:57]}  d5 {[%clk 0:02:29]} 5. exd5 {[%clk 0:02:56]}  Qxd5 {[%clk 0:02:29]} 6. Nf3 {[%clk 0:02:56]}  Nc6 {[%clk 0:02:28]} 7. c4 {[%clk 0:02:33]}  Qd8 {[%clk 0:02:25]} 8. d4 {[%clk 0:02:31]}  e6 {[%clk 0:02:24]} 9. Be2 {[%clk 0:02:26]}  Nf6 {[%clk 0:02:21]} 10. O-O {[%clk 0:02:25]}  Be7 {[%clk 0:02:22]} 11. Bf4 {[%clk 0:02:14]}  O-O {[%clk 0:02:20]} 12. h3 {[%clk 0:02:14]}  h6 {[%clk 0:02:14]} 13. Nb5 {[%clk 0:02:13]}  a6 {[%clk 0:02:14]} 14. Nc7 {[%clk 0:02:05]}  Ra7 {[%clk 0:02:11]} 15. d5 {[%clk 0:02:02]}  exd5 {[%clk 0:02:03]} 16. cxd5 {[%clk 0:02:02]}  Bd6 {[%clk 0:02:00]} 17. Bxd6 {[%clk 0:01:39]}  Qxd6 {[%clk 0:02:00]} 18. dxc6 {[%clk 0:01:39]}  Qxc7 {[%clk 0:02:00]} 19. cxb7 {[%clk 0:01:34]}  Bxb7 {[%clk 0:02:01]} 20. Qd4 {[%clk 0:01:04]}  Raa8 {[%clk 0:02:00]} 21. Rfc1 {[%clk 0:01:03]}  Qe7 {[%clk 0:02:00]} 22. Re1 {[%clk 0:01:03]}  Rfd8 {[%clk 0:01:59]} 23. Qf4 {[%clk 0:00:43]}  Qd6 {[%clk 0:01:56]} 24. Ne5 {[%clk 0:00:38]}  a5 {[%clk 0:01:51]} 25. Rad1 {[%clk 0:00:32]}  Qb4 {[%clk 0:01:49]} 26. Rxd8+ {[%clk 0:00:22]}  Rxd8 {[%clk 0:01:49]} 27. Qxb4 {[%clk 0:00:20]}  axb4 {[%clk 0:01:48]} 28. Rb1 {[%clk 0:00:21]}  Rd4 {[%clk 0:01:41]} 29. Nd3 {[%clk 0:00:21]}  Be4 {[%clk 0:01:39]} 30. Rxb4 {[%clk 0:00:17]}  Rxd3 {[%clk 0:01:36]} 31. Rxe4 {[%clk 0:00:16]}  Rd2 {[%clk 0:01:36]} 32. Re7 {[%clk 0:00:12]}  Kf8 {[%clk 0:01:36]} 33. Re3 {[%clk 0:00:11]}  g5 {[%clk 0:01:36]} 34. Bc4 {[%clk 0:00:09]}  Rc2 {[%clk 0:01:36]} 35. Bf1 {[%clk 0:00:06]}  Rc1 {[%clk 0:01:36]} 36. g3 {[%clk 0:00:05]}  Nd5 {[%clk 0:01:36]} 37. Re5 {[%clk 0:00:04]}  Nc3 {[%clk 0:01:35]} 38. Kg2 {[%clk 0:00:04]}  Kg7 {[%clk 0:01:35]} 39. Bd3 {[%clk 0:00:03]}  Rd1 {[%clk 0:01:35]} 40. Be2 {[%clk 0:00:00]}  Re1 {[%clk 0:01:34]} 0-1


[Site "https://www.chess.com"]

[Event "Titled Tuesday Blitz May 16 Early 2023"]
[White "Cezila Jr, Rubens"]
[Black "Viasus, Juan Diego"]
[WhiteFideId "2116723"]
[BlackFideId "4464346"]
[WhiteElo "2214"]
[BlackElo "1249"]
[Result "1-0"]
[Round "02"]
[TimeControl "180+2"]
[Date "2023.05.16"]
[WhiteClock "0:00:53"]
[BlackClock "0:00:17"]

1. c4 {[%clk 0:03:00]}  c5 {[%clk 0:03:00]} 2. Nc3 {[%clk 0:03:00]}  Nc6 {[%clk 0:03:00]} 3. g3 {[%clk 0:03:00]}  g6 {[%clk 0:03:00]} 4. Bg2 {[%clk 0:03:01]}  Bg7 {[%clk 0:03:00]} 5. h4 {[%clk 0:03:02]}  Nf6 {[%clk 0:02:58]} 6. d3 {[%clk 0:03:01]}  O-O {[%clk 0:02:51]} 7. h5 {[%clk 0:02:59]}  e6 {[%clk 0:02:50]} 8. e4 {[%clk 0:02:57]}  d6 {[%clk 0:02:48]} 9. hxg6 {[%clk 0:02:49]}  fxg6 {[%clk 0:02:47]} 10. Nf3 {[%clk 0:02:49]}  Nd4 {[%clk 0:02:46]} 11. Bh6 {[%clk 0:02:43]}  e5 {[%clk 0:02:46]} 12. Bg5 {[%clk 0:02:28]}  Qb6 {[%clk 0:02:40]} 13. Nxd4 {[%clk 0:02:20]}  cxd4 {[%clk 0:02:17]} 14. Bxf6 {[%clk 0:02:02]}  dxc3 {[%clk 0:02:03]} 15. Bxg7 {[%clk 0:01:59]}  cxb2 {[%clk 0:02:03]} 16. Bxf8 {[%clk 0:01:50]}  bxa1=Q {[%clk 0:02:00]} 17. Qxa1 {[%clk 0:01:50]}  Kxf8 {[%clk 0:01:59]} 18. O-O {[%clk 0:01:49]}  Be6 {[%clk 0:01:40]} 19. Kh2 {[%clk 0:01:46]}  Kg7 {[%clk 0:01:38]} 20. f4 {[%clk 0:01:45]}  Qc5 {[%clk 0:01:38]} 21. Qb2 {[%clk 0:01:39]}  b6 {[%clk 0:01:24]} 22. f5 {[%clk 0:01:37]}  Bf7 {[%clk 0:01:16]} 23. fxg6 {[%clk 0:01:29]}  Bxg6 {[%clk 0:01:11]} 24. Qe2 {[%clk 0:01:19]}  Qc8 {[%clk 0:01:00]} 25. Bh3 {[%clk 0:01:18]}  Qd8 {[%clk 0:00:50]} 26. Qg4 {[%clk 0:01:11]}  Qe7 {[%clk 0:00:39]} 27. Rf2 {[%clk 0:01:01]}  Qc7 {[%clk 0:00:25]} 28. Qg5 {[%clk 0:00:57]}  Qb7 {[%clk 0:00:21]} 29. Qf6+ {[%clk 0:00:54]}  Kg8 {[%clk 0:00:17]} 30. Be6+ {[%clk 0:00:53]} 1-0


[Site "https://www.chess.com"]

[Event "Titled Tuesday Blitz May 16 Early 2023"]
[White "Pesotskiy, Mikhail"]
[Black "Sanchez, Robert"]
[WhiteFideId "34164453"]
[BlackFideId "2034360"]
[WhiteElo "2131"]
[BlackElo "1842"]
[Result "0-1"]
[Round "02"]
[TimeControl "180+2"]
[Date "2023.05.16"]
[WhiteClock "0:00:00"]
[BlackClock "0:02:03"]

1. c4 {[%clk 0:02:07]}  e6 {[%clk 0:02:57]} 2. g3 {[%clk 0:02:05]}  d5 {[%clk 0:02:58]} 3. Bg2 {[%clk 0:02:06]}  Nf6 {[%clk 0:02:58]} 4. Nf3 {[%clk 0:02:07]}  Be7 {[%clk 0:02:59]} 5. O-O {[%clk 0:02:08]}  O-O {[%clk 0:02:59]} 6. b3 {[%clk 0:02:03]}  c6 {[%clk 0:03:00]} 7. Bb2 {[%clk 0:02:04]}  Nbd7 {[%clk 0:03:01]} 8. d3 {[%clk 0:01:46]}  b5 {[%clk 0:03:00]} 9. Nbd2 {[%clk 0:01:47]}  b4 {[%clk 0:02:55]} 10. e4 {[%clk 0:01:44]}  Bb7 {[%clk 0:02:50]} 11. e5 {[%clk 0:01:44]}  Ne8 {[%clk 0:02:49]} 12. d4 {[%clk 0:01:43]}  c5 {[%clk 0:02:48]} 13. Qe2 {[%clk 0:01:44]}  dxc4 {[%clk 0:02:39]} 14. Nxc4 {[%clk 0:01:40]}  cxd4 {[%clk 0:02:38]} 15. Nxd4 {[%clk 0:01:36]}  Bxg2 {[%clk 0:02:37]} 16. Kxg2 {[%clk 0:01:37]}  Nc5 {[%clk 0:02:28]} 17. Nc6 {[%clk 0:01:36]}  Qc7 {[%clk 0:02:27]} 18. Nxe7+ {[%clk 0:01:18]}  Qxe7 {[%clk 0:02:27]} 19. Rfd1 {[%clk 0:01:14]}  f6 {[%clk 0:02:23]} 20. f4 {[%clk 0:01:10]}  fxe5 {[%clk 0:02:22]} 21. Bxe5 {[%clk 0:01:08]}  Nf6 {[%clk 0:02:13]} 22. Bd6 {[%clk 0:01:05]}  Qb7+ {[%clk 0:02:13]} 23. Qf3 {[%clk 0:01:06]}  Qxf3+ {[%clk 0:02:12]} 24. Kxf3 {[%clk 0:01:07]}  Rfc8 {[%clk 0:02:12]} 25. Rac1 {[%clk 0:00:57]}  Nd5 {[%clk 0:02:05]} 26. g4 {[%clk 0:00:00]}  Kf7 {[%clk 0:02:03]} 0-1


[Site "https://www.chess.com"]

[Event "Titled Tuesday Blitz May 16 Early 2023"]
[White "Schmakel, Sam"]
[Black "Firouzja, Alireza"]
[WhiteFideId "2039311"]
[BlackFideId "12573981"]
[WhiteElo "2356"]
[BlackElo "2904"]
[Result "0-1"]
[Round "03"]
[TimeControl "180+2"]
[Date "2023.05.16"]
[WhiteClock "0:00:05"]
[BlackClock "0:00:12"]

1. d4 {[%clk 0:03:00]}  Nf6 {[%clk 0:02:56]} 2. c4 {[%clk 0:03:01]}  g6 {[%clk 0:02:12]} 3. Nc3 {[%clk 0:03:00]}  Bg7 {[%clk 0:02:06]} 4. e4 {[%clk 0:02:59]}  d6 {[%clk 0:02:01]} 5. h3 {[%clk 0:02:59]}  O-O {[%clk 0:02:01]} 6. Be3 {[%clk 0:03:00]}  Nbd7 {[%clk 0:01:58]} 7. Nf3 {[%clk 0:02:44]}  e5 {[%clk 0:01:58]} 8. d5 {[%clk 0:02:39]}  Nc5 {[%clk 0:01:46]} 9. Nd2 {[%clk 0:02:27]}  a5 {[%clk 0:01:44]} 10. g4 {[%clk 0:02:21]}  c6 {[%clk 0:01:36]} 11. Rg1 {[%clk 0:02:04]}  a4 {[%clk 0:01:32]} 12. Qc2 {[%clk 0:01:50]}  Qa5 {[%clk 0:01:28]} 13. Be2 {[%clk 0:01:27]}  a3 {[%clk 0:01:18]} 14. b3 {[%clk 0:01:27]}  Bd7 {[%clk 0:00:57]} 15. Rc1 {[%clk 0:01:14]}  Qb4 {[%clk 0:00:53]} 16. f3 {[%clk 0:01:07]}  Rfc8 {[%clk 0:00:42]} 17. Kf2 {[%clk 0:01:01]}  Ne8 {[%clk 0:00:28]} 18. h4 {[%clk 0:00:48]}  Bf6 {[%clk 0:00:23]} 19. h5 {[%clk 0:00:35]}  Bd8 {[%clk 0:00:20]} 20. Ndb1 {[%clk 0:00:32]}  Bb6 {[%clk 0:00:20]} 21. Qd2 {[%clk 0:00:25]}  Nxb3 {[%clk 0:00:16]} 22. axb3 {[%clk 0:00:26]}  a2 {[%clk 0:00:17]} 23. Nxa2 {[%clk 0:00:20]}  Bxe3+ {[%clk 0:00:14]} 24. Kxe3 {[%clk 0:00:09]}  Qc5+ {[%clk 0:00:11]} 25. Kd3 {[%clk 0:00:08]}  Qd4+ {[%clk 0:00:11]} 26. Kc2 {[%clk 0:00:05]}  Rxa2+ {[%clk 0:00:12]} 0-1


[Site "https://www.chess.com"]

[Event "Titled Tuesday Blitz May 16 Early 2023"]
[White "Csonka, Balazs"]
[Black "Erigaisi Arjun"]
[WhiteFideId "742910"]
[BlackFideId "35009192"]
[WhiteElo "2404"]
[BlackElo "2719"]
[Result "0-1"]
[Round "03"]
[TimeControl "180+2"]
[Date "2023.05.16"]
[WhiteClock "0:00:02"]
[BlackClock "0:00:27"]

1. d4 {[%clk 0:03:00]}  d6 {[%clk 0:02:58]} 2. Nf3 {[%clk 0:02:59]}  g6 {[%clk 0:02:58]} 3. c4 {[%clk 0:02:53]}  Bg7 {[%clk 0:02:58]} 4. Nc3 {[%clk 0:02:54]}  Nc6 {[%clk 0:02:58]} 5. g3 {[%clk 0:02:39]}  Bd7 {[%clk 0:02:57]} 6. Bg2 {[%clk 0:02:35]}  Qc8 {[%clk 0:02:57]} 7. O-O {[%clk 0:02:35]}  Bh3 {[%clk 0:02:56]} 8. Qa4 {[%clk 0:02:31]}  Kf8 {[%clk 0:02:52]} 9. d5 {[%clk 0:02:13]}  Ne5 {[%clk 0:02:49]} 10. Nxe5 {[%clk 0:02:10]}  Bxe5 {[%clk 0:02:49]} 11. f4 {[%clk 0:01:26]}  Bxc3 {[%clk 0:02:36]} 12. bxc3 {[%clk 0:01:27]}  h5 {[%clk 0:02:36]} 13. c5 {[%clk 0:00:37]}  h4 {[%clk 0:02:28]} 14. Qd4 {[%clk 0:00:37]}  Nf6 {[%clk 0:02:27]} 15. f5 {[%clk 0:00:31]}  hxg3 {[%clk 0:02:18]} 16. hxg3 {[%clk 0:00:28]}  Bxg2 {[%clk 0:02:09]} 17. Kxg2 {[%clk 0:00:29]}  Rh5 {[%clk 0:02:08]} 18. e4 {[%clk 0:00:11]}  dxc5 {[%clk 0:01:53]} 19. Qxc5 {[%clk 0:00:08]}  Nxe4 {[%clk 0:01:46]} 20. Qd4 {[%clk 0:00:08]}  gxf5 {[%clk 0:01:36]} 21. Bf4 {[%clk 0:00:09]}  c5 {[%clk 0:01:35]} 22. Qe3 {[%clk 0:00:07]}  Qd7 {[%clk 0:01:26]} 23. c4 {[%clk 0:00:07]}  Qa4 {[%clk 0:01:23]} 24. Rae1 {[%clk 0:00:03]}  Qxc4 {[%clk 0:01:18]} 25. g4 {[%clk 0:00:02]}  Rh4 {[%clk 0:01:02]} 26. gxf5 {[%clk 0:00:03]}  Nf6 {[%clk 0:00:46]} 27. Qxe7+ {[%clk 0:00:03]}  Kg7 {[%clk 0:00:47]} 28. Re6 {[%clk 0:00:03]}  Qxd5+ {[%clk 0:00:37]} 29. Rf3 {[%clk 0:00:02]}  Rg4+ {[%clk 0:00:33]} 30. Kf2 {[%clk 0:00:02]}  Qxa2+ {[%clk 0:00:30]} 31. Re2 {[%clk 0:00:02]}  Qa1 {[%clk 0:00:27]} 32. Be5 {[%clk 0:00:02]}  Qg1# {[%clk 0:00:27]} 0-1


[Site "https://www.chess.com"]

[Event "Titled Tuesday Blitz May 16 Early 2023"]
[White "Yanchenko, Roman"]
[Black "Demchenko, Anton"]
[WhiteFideId "4137329"]
[BlackFideId "4160258"]
[WhiteElo "2491"]
[BlackElo "2545"]
[Result "1-0"]
[Round "03"]
[TimeControl "180+2"]
[Date "2023.05.16"]
[WhiteClock "0:00:20"]
[BlackClock "0:00:02"]

1. d4 {[%clk 0:03:00]}  Nf6 {[%clk 0:02:59]} 2. Nf3 {[%clk 0:03:00]}  d6 {[%clk 0:02:59]} 3. c4 {[%clk 0:03:01]}  Nc6 {[%clk 0:02:59]} 4. Nc3 {[%clk 0:03:01]}  e5 {[%clk 0:02:59]} 5. dxe5 {[%clk 0:03:01]}  dxe5 {[%clk 0:03:00]} 6. Qxd8+ {[%clk 0:03:01]}  Kxd8 {[%clk 0:03:01]} 7. Bg5 {[%clk 0:03:02]}  Be6 {[%clk 0:03:01]} 8. O-O-O+ {[%clk 0:03:01]}  Kc8 {[%clk 0:03:02]} 9. Bxf6 {[%clk 0:03:01]}  gxf6 {[%clk 0:03:03]} 10. e3 {[%clk 0:03:01]}  a5 {[%clk 0:03:01]} 11. Be2 {[%clk 0:03:00]}  a4 {[%clk 0:03:00]} 12. a3 {[%clk 0:03:00]}  Nb8 {[%clk 0:02:45]} 13. h3 {[%clk 0:02:54]}  Nd7 {[%clk 0:02:41]} 14. Nd2 {[%clk 0:02:33]}  c6 {[%clk 0:02:29]} 15. Nde4 {[%clk 0:02:25]}  Kc7 {[%clk 0:02:21]} 16. g4 {[%clk 0:02:23]}  Be7 {[%clk 0:02:19]} 17. Kc2 {[%clk 0:02:12]}  f5 {[%clk 0:02:15]} 18. gxf5 {[%clk 0:02:09]}  Bxf5 {[%clk 0:02:16]} 19. Bg4 {[%clk 0:02:09]}  Bxe4+ {[%clk 0:01:45]} 20. Nxe4 {[%clk 0:02:09]}  Rad8 {[%clk 0:01:36]} 21. Bf5 {[%clk 0:01:41]}  Nc5 {[%clk 0:01:00]} 22. Rxd8 {[%clk 0:01:34]}  Rxd8 {[%clk 0:01:00]} 23. Nxc5 {[%clk 0:01:26]}  Bxc5 {[%clk 0:01:00]} 24. Bxh7 {[%clk 0:01:27]}  Rh8 {[%clk 0:01:00]} 25. Bf5 {[%clk 0:01:25]}  Rh4 {[%clk 0:01:00]} 26. Kd3 {[%clk 0:01:13]}  Be7 {[%clk 0:00:45]} 27. Bg4 {[%clk 0:01:08]}  Bf6 {[%clk 0:00:42]} 28. Ke4 {[%clk 0:01:09]}  Rh8 {[%clk 0:00:37]} 29. c5 {[%clk 0:00:46]}  Be7 {[%clk 0:00:30]} 30. Rc1 {[%clk 0:00:46]}  f6 {[%clk 0:00:26]} 31. Rc4 {[%clk 0:00:44]}  Rh6 {[%clk 0:00:20]} 32. Kf5 {[%clk 0:00:44]}  Bf8 {[%clk 0:00:19]} 33. Ke6 {[%clk 0:00:43]}  Kb8 {[%clk 0:00:02]} 34. Kf7 {[%clk 0:00:37]}  Rh8 {[%clk 0:00:03]} 35. Kxf6 {[%clk 0:00:24]}  Rh7 {[%clk 0:00:03]} 36. Bf5 {[%clk 0:00:21]}  Rg7 {[%clk 0:00:02]} 37. Rg4 {[%clk 0:00:18]}  Rxg4 {[%clk 0:00:02]} 38. hxg4 {[%clk 0:00:19]}  Bxc5 {[%clk 0:00:02]} 39. g5 {[%clk 0:00:19]}  Kc7 {[%clk 0:00:01]} 40. g6 {[%clk 0:00:20]}  Bf8 {[%clk 0:00:02]} 41. g7 {[%clk 0:00:19]}  Bxg7+ {[%clk 0:00:03]} 42. Kxg7 {[%clk 0:00:20]}  Kd6 {[%clk 0:00:03]} 43. Kf6 {[%clk 0:00:20]}  b5 {[%clk 0:00:04]} 44. Bd3 {[%clk 0:00:21]}  Kd5 {[%clk 0:00:03]} 45. Kf5 {[%clk 0:00:20]}  Kc5 {[%clk 0:00:02]} 46. Kxe5 {[%clk 0:00:20]}  b4 {[%clk 0:00:02]} 47. axb4+ {[%clk 0:00:20]} 1-0


[Site "https://www.chess.com"]

[Event "Titled Tuesday Blitz May 16 Early 2023"]
[White "Gunina, Valentina"]
[Black "Makarian, Rudik"]
[WhiteFideId "4167570"]
[BlackFideId "44105681"]
[WhiteElo "2352"]
[BlackElo "2461"]
[Result "0-1"]
[Round "03"]
[TimeControl "180+2"]
[Date "2023.05.16"]
[WhiteClock "0:00:29"]
[BlackClock "0:00:18"]

1. d4 {[%clk 0:03:00]}  Nf6 {[%clk 0:02:59]} 2. c4 {[%clk 0:03:01]}  e6 {[%clk 0:02:59]} 3. Nf3 {[%clk 0:03:01]}  d5 {[%clk 0:02:59]} 4. Nc3 {[%clk 0:03:01]}  Be7 {[%clk 0:02:59]} 5. Bf4 {[%clk 0:02:59]}  O-O {[%clk 0:02:57]} 6. e3 {[%clk 0:02:59]}  Nbd7 {[%clk 0:02:58]} 7. c5 {[%clk 0:02:49]}  Ne4 {[%clk 0:02:57]} 8. Bd3 {[%clk 0:02:45]}  f5 {[%clk 0:02:56]} 9. h4 {[%clk 0:02:42]}  c6 {[%clk 0:02:54]} 10. Ne2 {[%clk 0:02:21]}  Qa5+ {[%clk 0:02:47]} 11. Kf1 {[%clk 0:02:19]}  b6 {[%clk 0:02:42]} 12. cxb6 {[%clk 0:02:18]}  axb6 {[%clk 0:02:43]} 13. Ng5 {[%clk 0:02:16]}  Ndf6 {[%clk 0:02:14]} 14. f3 {[%clk 0:02:12]}  Nd6 {[%clk 0:02:02]} 15. b3 {[%clk 0:01:59]}  c5 {[%clk 0:02:01]} 16. Kf2 {[%clk 0:01:57]}  h6 {[%clk 0:02:01]} 17. Nh3 {[%clk 0:01:55]}  Nh5 {[%clk 0:01:48]} 18. g3 {[%clk 0:01:55]}  Ba6 {[%clk 0:01:36]} 19. Bxa6 {[%clk 0:01:53]}  Qxa6 {[%clk 0:01:37]} 20. Be5 {[%clk 0:01:48]}  Nf7 {[%clk 0:01:33]} 21. Nhf4 {[%clk 0:01:34]}  Nxe5 {[%clk 0:01:32]} 22. dxe5 {[%clk 0:01:34]}  Nxf4 {[%clk 0:01:32]} 23. Nxf4 {[%clk 0:01:32]}  Qc8 {[%clk 0:01:31]} 24. Qg1 {[%clk 0:01:29]}  Qc7 {[%clk 0:01:10]} 25. Qc1 {[%clk 0:01:05]}  Qxe5 {[%clk 0:01:07]} 26. Ng6 {[%clk 0:01:03]}  Qf6 {[%clk 0:01:07]} 27. Nxf8 {[%clk 0:01:03]}  Bxf8 {[%clk 0:01:06]} 28. a4 {[%clk 0:01:02]}  Bd6 {[%clk 0:01:06]} 29. f4 {[%clk 0:01:02]}  Kh7 {[%clk 0:01:00]} 30. Ra3 {[%clk 0:01:01]}  c4 {[%clk 0:00:53]} 31. bxc4 {[%clk 0:00:51]}  Bxa3 {[%clk 0:00:49]} 32. Qxa3 {[%clk 0:00:51]}  dxc4 {[%clk 0:00:47]} 33. Rc1 {[%clk 0:00:48]}  Rc8 {[%clk 0:00:44]} 34. Qb4 {[%clk 0:00:46]}  c3 {[%clk 0:00:31]} 35. Qxb6 {[%clk 0:00:43]}  Qe7 {[%clk 0:00:26]} 36. g4 {[%clk 0:00:36]}  Qxh4+ {[%clk 0:00:25]} 37. Ke2 {[%clk 0:00:33]}  Qxg4+ {[%clk 0:00:23]} 38. Kd3 {[%clk 0:00:33]}  c2 {[%clk 0:00:18]} 39. Qxe6 {[%clk 0:00:29]}  Qd1+ {[%clk 0:00:18]} 0-1


[Site "https://www.chess.com"]

[Event "Titled Tuesday Blitz May 16 Early 2023"]
[White "Di Benedetto, Edoardo"]
[Black "Zhigalko, Sergei"]
[WhiteFideId "875740"]
[BlackFideId "13502956"]
[WhiteElo "2296"]
[BlackElo "2626"]
[Result "0-1"]
[Round "03"]
[TimeControl "180+2"]
[Date "2023.05.16"]
[WhiteClock "0:00:04"]
[BlackClock "0:00:06"]

1. d4 {[%clk 0:02:59]}  Nf6 {[%clk 0:03:00]} 2. c4 {[%clk 0:02:59]}  e6 {[%clk 0:03:00]} 3. Nf3 {[%clk 0:02:59]}  b6 {[%clk 0:03:01]} 4. g3 {[%clk 0:02:59]}  Ba6 {[%clk 0:03:01]} 5. b3 {[%clk 0:02:59]}  Bb4+ {[%clk 0:03:01]} 6. Bd2 {[%clk 0:02:59]}  Be7 {[%clk 0:03:01]} 7. Bg2 {[%clk 0:03:00]}  c6 {[%clk 0:03:01]} 8. O-O {[%clk 0:02:59]}  d5 {[%clk 0:03:02]} 9. Bc3 {[%clk 0:02:56]}  Nbd7 {[%clk 0:03:01]} 10. Nbd2 {[%clk 0:02:56]}  O-O {[%clk 0:03:01]} 11. Qc2 {[%clk 0:02:54]}  c5 {[%clk 0:03:01]} 12. Rfd1 {[%clk 0:02:31]}  Rc8 {[%clk 0:02:59]} 13. Qb2 {[%clk 0:02:19]}  b5 {[%clk 0:02:51]} 14. cxb5 {[%clk 0:02:12]}  Bxb5 {[%clk 0:02:51]} 15. dxc5 {[%clk 0:02:07]}  Bxe2 {[%clk 0:02:47]} 16. Re1 {[%clk 0:02:05]}  Bxf3 {[%clk 0:02:47]} 17. Nxf3 {[%clk 0:01:58]}  Nxc5 {[%clk 0:02:42]} 18. Rad1 {[%clk 0:01:52]}  Nce4 {[%clk 0:02:22]} 19. Bd4 {[%clk 0:01:52]}  Qa5 {[%clk 0:02:21]} 20. Ne5 {[%clk 0:01:45]}  Ba3 {[%clk 0:02:00]} 21. Qa1 {[%clk 0:01:23]}  Bb4 {[%clk 0:01:59]} 22. Rf1 {[%clk 0:01:20]}  Bc3 {[%clk 0:01:57]} 23. Bxc3 {[%clk 0:01:21]}  Nxc3 {[%clk 0:01:57]} 24. Rd2 {[%clk 0:01:17]}  Nce4 {[%clk 0:01:46]} 25. Re2 {[%clk 0:01:10]}  Rc7 {[%clk 0:01:45]} 26. g4 {[%clk 0:01:04]}  Nc3 {[%clk 0:01:42]} 27. Rd2 {[%clk 0:01:01]}  Rfc8 {[%clk 0:01:35]} 28. h4 {[%clk 0:00:54]}  Nfe4 {[%clk 0:01:27]} 29. Rc2 {[%clk 0:00:50]}  Qb4 {[%clk 0:01:01]} 30. h5 {[%clk 0:00:38]}  h6 {[%clk 0:01:01]} 31. Nd3 {[%clk 0:00:18]}  Qd4 {[%clk 0:00:53]} 32. Nf4 {[%clk 0:00:18]}  Qf6 {[%clk 0:00:40]} 33. Nh3 {[%clk 0:00:15]}  d4 {[%clk 0:00:32]} 34. Bxe4 {[%clk 0:00:14]}  Nxe4 {[%clk 0:00:33]} 35. Rxc7 {[%clk 0:00:14]}  Rxc7 {[%clk 0:00:34]} 36. Qd1 {[%clk 0:00:13]}  Rc3 {[%clk 0:00:21]} 37. Kg2 {[%clk 0:00:13]}  Qh4 {[%clk 0:00:21]} 38. Rh1 {[%clk 0:00:12]}  d3 {[%clk 0:00:13]} 39. Qe1 {[%clk 0:00:11]}  f5 {[%clk 0:00:09]} 40. gxf5 {[%clk 0:00:11]}  Qg4+ {[%clk 0:00:07]} 41. Kf1 {[%clk 0:00:11]}  exf5 {[%clk 0:00:07]} 42. Ng1 {[%clk 0:00:09]}  d2 {[%clk 0:00:06]} 43. f3 {[%clk 0:00:04]}  dxe1=Q+ {[%clk 0:00:06]} 0-1


[Site "https://www.chess.com"]

[Event "Titled Tuesday Blitz May 16 Early 2023"]
[White "Hakobyan, Aram"]
[Black "Preotu, Razvan"]
[WhiteFideId "13306677"]
[BlackFideId "2613280"]
[WhiteElo "2584"]
[BlackElo "2407"]
[Result "1-0"]
[Round "03"]
[TimeControl "180+2"]
[Date "2023.05.16"]
[WhiteClock "0:02:05"]
[BlackClock "0:00:25"]

1. e4 {[%clk 0:03:00]}  c5 {[%clk 0:02:58]} 2. Nf3 {[%clk 0:03:01]}  d6 {[%clk 0:02:58]} 3. Bb5+ {[%clk 0:03:02]}  Nd7 {[%clk 0:02:55]} 4. O-O {[%clk 0:03:01]}  a6 {[%clk 0:02:56]} 5. Bxd7+ {[%clk 0:03:02]}  Bxd7 {[%clk 0:02:56]} 6. c3 {[%clk 0:03:02]}  Nf6 {[%clk 0:02:55]} 7. Re1 {[%clk 0:03:03]}  e6 {[%clk 0:02:18]} 8. d4 {[%clk 0:03:04]}  Be7 {[%clk 0:02:19]} 9. e5 {[%clk 0:03:00]}  dxe5 {[%clk 0:02:17]} 10. dxe5 {[%clk 0:03:01]}  Nd5 {[%clk 0:02:17]} 11. c4 {[%clk 0:03:02]}  Nb4 {[%clk 0:02:14]} 12. a3 {[%clk 0:03:00]}  Nc6 {[%clk 0:02:14]} 13. Nc3 {[%clk 0:03:00]}  Qc7 {[%clk 0:02:13]} 14. Bf4 {[%clk 0:02:59]}  h6 {[%clk 0:02:13]} 15. Bg3 {[%clk 0:02:53]}  Rd8 {[%clk 0:01:50]} 16. Ne4 {[%clk 0:02:43]}  O-O {[%clk 0:01:46]} 17. Nf6+ {[%clk 0:02:27]}  gxf6 {[%clk 0:01:18]} 18. exf6 {[%clk 0:02:27]}  Bc8 {[%clk 0:01:11]} 19. Qc1 {[%clk 0:02:18]}  Qxg3 {[%clk 0:00:46]} 20. hxg3 {[%clk 0:02:16]}  Bxf6 {[%clk 0:00:47]} 21. Qxh6 {[%clk 0:02:15]}  Bg7 {[%clk 0:00:46]} 22. Qh5 {[%clk 0:02:15]}  f6 {[%clk 0:00:35]} 23. Rad1 {[%clk 0:02:10]}  Nd4 {[%clk 0:00:25]} 24. Qxc5 {[%clk 0:02:05]} 1-0


[Site "https://www.chess.com"]